Cogmind - Beta 13 @@@ ROGUE MODE // 2024.04.04 @ 18:23:35 Player: Gilvian Result: Destroyed by G-34 Mercenary with Small Laser Performance ------------- Evolutions (1) 500 Regions Visited (2) 400 Robots Destroyed (26) 130 Value Destroyed (751) 751 Prototype IDs (6) 120 Alien Tech Used (0) 0 Bonus (0) 0 TOTAL SCORE: 1901 Bonus ------- None Cogmind --------- Core Integrity 0/400 Matter 300/300 Energy 38/100 System Corruption 0% Temperature Cool (6) Movement Core (50) Location -9/Materials Parts ------- > --- POWER (1) -------- (None) > --- PROPULSION (2) --- (None) > --- UTILITY (3) ------ Weight Redist. System Improved Targeting Computer > --- WEAPON (3) ------- (None) > --- INVENTORY (5) ---- Light Assault Rifle Peak State ------------ > --- POWER ------------ Ion Engine > --- PROPULSION ------- Aluminum Leg Aluminum Leg > --- UTILITY ---------- Weight Redist. System Improved Targeting Computer Hardened Light Armor Plating > --- WEAPON ----------- Assault Rifle Light Assault Rifle Heavy Assault Rifle > --- INVENTORY -------- (None) [Rating: 13] Favorites ----------- Power Light Ion Engine Engine Light Ion Engine Propulsion Aluminum Leg Leg Aluminum Leg Hover Unit Hover Unit Flight Unit Flight Unit Utility Weight Redist. System Device Weight Redist. System Processor Targeting Computer Protection Hardened Light Armor Plating Weapon Light Assault Rifle Ballistic Gun Light Assault Rifle Build | -11 -10 -9 ------- Run | Yrd Mat Mat Slots Evolved 2 | . . 2 Power . | . . . Propulsion . | . . . Utility 1 | . . 1 Weapon 1 | . . 1 Parts Attached 25 | 4 11 10 Power 5 | 1 2 2 Engine 5 | 1 2 2 Core . | . . . Reactor . | . . . Propulsion 10 | 2 5 3 Treads . | . . . Leg 6 | 2 2 2 Wheel . | . . . Hover 2 | . 1 1 Flight 2 | . 2 . Utility 4 | . 2 2 Device 1 | . 1 . Storage . | . . . Processor 2 | . 1 1 Hackware . | . . . Protection 1 | . . 1 Artifact . | . . . Weapon 6 | 1 2 3 Energy Gun . | . . . Energy Cannon . | . . . Ballistic Gun 6 | 1 2 3 Ballistic Cannon . | . . . Launcher . | . . . Special Weapon . | . . . Impact Weapon . | . . . Slashing Weapon . | . . . Piercing Weapon . | . . . Special Melee Weapon . | . . . Unidentified Prototypes . | . . . Parts Lost 12 | . 4 8 Power 3 | . 1 2 Propulsion 5 | . 2 3 Utility 1 | . . 1 Weapon 3 | . 1 2 Highest Loss Streak 5 | . 2 5 To Critical Strikes . | . . . Average Slot Usage (%) 70 | . 73 67 Engine 8 | . 11 5 Leg 10 | . 8 12 Hover 4 | . 6 2 Flight 2 | . 4 . Device 8 | . 6 11 Processor 11 | . 12 11 Protection 3 | . . 6 Ballistic Gun 21 | . 24 18 Naked Turns . | . . . Heaviest Build 16 | 4 6 16 Greatest Support 26 | 20 26 26 Greatest Overweight (x) . | . . . Average Overweight (x) . | . . . Largest Inventory Capacity 5 | 5 5 5 Average Capacity 5 | 5 5 5 Most Carried 5 | 3 4 5 Average Carried 1 | . 2 1 Final Capacity 5 | 5 5 5 Final Carried 1 | . 1 1 Class Distribution -------------------- 64% | Mutant 21% | Scavenger-Mutant 14% | Gunner Dominant Class ---------------- Mutant | -10/Materials Mutant | -9/Materials Resources | -11 -10 -9 ----------- Run | Yrd Mat Mat Matter Collected 829 | 236 209 384 Remotely . | . . . Salvage Created 980 | . 466 514 Parts 59 | . 37 22 Haulers Intercepted 1 | . 1 . Recyclers Shooed 1 | . . 1 Parts Field Recycled . | . . . Retrieved Matter . | . . . Parts Self-Destructed . | . . . Prevented . | . . . Kills | -11 -10 -9 ------- Run | Yrd Mat Mat Combat Hostiles Destroyed 23 | . 12 11 Guns 23 | . 12 11 Classes Destroyed 6 | . 4 2 Hauler 1 | . 1 . Recycler 1 | . . 1 Watcher 1 | . 1 . Swarmer 5 | . 3 2 Grunt 16 | . 9 7 Duelist 2 | . . 2 Best Kill Streak 4 | . 3 4 Combat Bots Only 4 | . 3 4 Max Kills in Single Turn 1 | . 1 1 Gunslinging . | . . . Exploded . | . . . Melee . | . . . Uniques/NPCs Destroyed . | . . . Combat | -11 -10 -9 -------- Run | Yrd Mat Mat Hostile Shots Fired 179 | . 63 116 Missed 51 | . 21 30 Damage Taken 1675 | . 508 1167 Core 635 | . 225 410 Absorbed by Shields . | . . . Core Remaining (%) 55 | 100 10 . Volleys Fired 123 | . 65 58 Largest 3 | . 2 3 Hottest 63 | . 40 63 Shots Fired 239 | . 107 132 Gun 239 | . 107 132 Cannon . | . . . Launcher . | . . . Special . | . . . Kinetic 239 | . 107 132 Thermal . | . . . Explosive . | . . . Electromagnetic . | . . . Robot Hit Streak 13 | . 12 13 Robot Miss Streak 5 | . 5 3 Penetration Max . | . . . Secondary Targets 2 | . 1 1 Max Gunslinging Chain 1 | . 1 1 Shots Hit Robots 167 | . 77 90 Core Hits 65 | . 35 30 Critical Kills . | . . . Critical Parts Destroyed 1 | . . 1 Critical Strikes 1 | . . 1 Destroy 1 | . . 1 Melee Attacks . | . . . Impact . | . . . Slashing . | . . . Piercing . | . . . Sneak Attacks . | . . . Combat Hostiles . | . . . Follow-up Attacks . | . . . Damage Inflicted 1751 | . 614 1137 Guns 1744 | . 614 1130 Cannons . | . . . Explosions . | . . . Melee . | . . . Ramming 7 | . . 7 Kinetic 1744 | . 614 1130 Thermal . | . . . Explosive . | . . . Electromagnetic . | . . . Impact . | . . . Slashing . | . . . Piercing . | . . . Highest Corruption . | . . . Average Corruption . | . . . Corruption Purged . | . . . Corruption Blocked . | . . . Overload Shots . | . . . Overflow Damage . | . . . Projectiles . | . . . Explosions . | . . . Melee . | . . . Knockbacks . | . . . Impact . | . . . Kinetic . | . . . Secondary . | . . . Self-Inflicted Damage . | . . . Shots . | . . . Rammed . | . . . Targets Rammed 2 | . . 2 Kicked 2 | . . 2 Crushed . | . . . Highest Temperature 196 | . 23 196 Average Temperature 56 | . 5 84 Received Heat Transfer 774 | . 282 492 Siege Activations . | . . . Robots Corrupted . | . . . Combat Hostiles . | . . . Parts Fried . | . . . Impact Corruptions . | . . . Robots Melted . | . . . Combat Hostiles . | . . . Parts Melted . | . . . Heat Transferred . | . . . Parts Sabotaged . | . . . Parts Stolen . | . . . Parts Stripped . | . . . Power Chain Reactions . | . . . Alert | -11 -10 -9 ------- Run | Yrd Mat Mat Peak Influence 324 | . 209 324 Initial 20 | . . 20 Average 125 | . 100 155 Maximum Alert Level 1 | . 1 1 Low Security (%) 83 | 100 95 72 Level 1 16 | . 4 27 Level 2 . | . . . Level 3 . | . . . Level 4 . | . . . Level 5 . | . . . High Security . | . . . Max Security . | . . . Squads Dispatched 5 | . 2 3 Investigation 3 | . 1 2 Extermination . | . . . Reinforcement 2 | . 1 1 Assault . | . . . Garrison . | . . . Intercept . | . . . Searches Triggered . | . . . Construction Impeded . | . . . Haulers Reinforced . | . . . Active Scanning Responses . | . . . Cargo Convoy Interrupts . | . . . Stealth | -11 -10 -9 --------- Run | Yrd Mat Mat Distress Signals 6 | . 1 5 Communications Jammed . | . . . Distress Signals . | . . . Times Spotted 49 | . 20 29 Peak Tracking Total 8 | . 5 8 Tactical Retreats 1 | . . 1 Traps | -11 -10 -9 ------- Run | Yrd Mat Mat Traps Triggered . | . . . Indirectly . | . . . Trap Hack Attempts . | . . . Triggered . | . . . Disarmed . | . . . Reprogrammed . | . . . Reused . | . . . Traps Extracted . | . . . Installed . | . . . Triggered . | . . . Machines | -11 -10 -9 ---------- Run | Yrd Mat Mat Machines Disabled . | . . . Max in Single Turn . | . . . Machines Repaired . | . . . Machines Dismantled . | . . . Machines Sabotaged . | . . . Overloaded Fab Kills . | . . . Hacking | -11 -10 -9 --------- Run | Yrd Mat Mat Machines Accessed 9 | . 5 4 Terminals 8 | . 4 4 Fabricators . | . . . Repair Stations . | . . . Recycling Units 1 | . 1 . Scanalyzers . | . . . Garrison Access . | . . . Total Hacks 23 | . 13 10 Successful 9 | . 5 4 Failed 14 | . 8 6 Catastrophic 2 | . . 2 Database Lockouts . | . . . Manual . | . . . Terminals 21 | . 11 10 Fabricators . | . . . Repair Stations . | . . . Recycling Units 2 | . 2 . Scanalyzers . | . . . Garrison Access . | . . . Terminal Hacks 8 | . 4 4 Prototype ID Bank 4 | . 3 1 Branch Access Points 1 | . . 1 Unreport Threat 1 | . 1 . Registered Components 1 | . . 1 Zone Layout 1 | . . 1 Fabricator Hacks . | . . . Repair Station Hacks . | . . . Recycling Unit Hacks 1 | . 1 . Report Inventory 1 | . 1 . Scanalyzer . | . . . Garrison Access Hacks . | . . . Unauthorized Hacks . | . . . Terminals . | . . . Fabricators . | . . . Repair Stations . | . . . Recycling Units . | . . . Scanalyzers . | . . . Garrison Access . | . . . Data Cores Recovered . | . . . Used . | . . . Hacking Detections 6 | . 3 3 Full Trace Events 3 | . 1 2 Feedback Events . | . . . Feedback Blocked . | . . . Robot Schematics Acquired . | . . . Robots Built . | . . . Authchips . | . . . Time . | . . . Total Robot Build Rating . | . . . Part Schematics Acquired . | . . . Parts Built . | . . . Authchips . | . . . Time . | . . . Total Part Build Rating . | . . . Parts Repaired . | . . . Time . | . . . Parts Recycled . | . . . Recycled Matter . | . . . Retrieved Matter . | . . . Retrieved Components . | . . . Parts Scanalyzed . | . . . Part Schematics Acquired . | . . . Parts Damaged . | . . . Bothacking | -11 -10 -9 ------------ Run | Yrd Mat Mat Used RIF Installer . | . . . Robots Hacked . | . . . Non-combat . | . . . Combat . | . . . Robot Hacks Applied . | . . . Relay Couplers Released . | . . . Fabnet Peak Effective % . | . . . Robots Rewired . | . . . Allies Hacked . | . . . Hacks Repelled . | . . . Allies | -11 -10 -9 -------- Run | Yrd Mat Mat Total Allies . | . . . Largest Group . | . . . Highest-Rated Group . | . . . Highest-Rated Ally . | . . . Total Orders . | . . . Ally Attacks . | . . . Total Damage . | . . . Kills . | . . . Allies Corrupted . | . . . Allies Melted . | . . . Intel | -11 -10 -9 ------- Run | Yrd Mat Mat Robot Analysis Total . | . . . Derelict Logs Recovered . | . . . Drone Launches . | . . . Drone Recoveries . | . . . Exploration | -11 -10 -9 ------------- Run | Yrd Mat Mat Turns Passed 975 | 37 433 505 Spaces Moved 675 | 32 385 258 Core 14 | 13 1 . Treads . | . . . Legs 248 | 19 64 165 Wheels . | . . . Hover 333 | . 240 93 Flight 80 | . 80 . Fastest Speed 37 | 50 37 60 Average Speed 79 | 91 65 98 Slowest Speed 120 | 120 120 120 Overloaded Moves . | . . . Propulsion Burnouts . | . . . Robots Hopped . | . . . Cave-ins Triggered . | . . . Exploration Rate (%) 39 | 3 82 32 Regions Visited 2 Branch Regions . Pre-discovered Areas . | . . . Known Exits Taken . | . . . Unknown Exits Taken 2 | 1 1 . Scrap Searched . | . . . Spaces Dug . | . . . Terrain Destroyed . | . . . Melee . | . . . Projectile . | . . . AOE . | . . . Terrain Rammed . | . . . Walls Destroyed . | . . . Machines Disabled . | . . . Actions | -11 -10 -9 --------- Run | Yrd Mat Mat Total 923 | 39 480 404 Wait 71 | . 10 61 Move 673 | 31 384 258 Hop . | . . . Pick Up 19 | 4 8 7 Fast Attach 1 | . . 1 Attach 20 | 4 9 7 Detach 5 | . 2 3 Swap 4 | . 2 2 Drop 5 | . . 5 Fire 123 | . 65 58 Melee . | . . . Ram . | . . . Kick 2 | . . 2 Crush . | . . . Escape Stasis . | . . . Rewire . | . . . Trap . | . . . Miscellaneous . | . . . Route ------- -11/Scrapyard -10/Materials (discovered 3 exits: *Mat x2 / [*Min]) -9/Materials (discovered 3 exits: *Min / Sto x2) History --------- Turn | Location | Event 4 | -11/Scrapyard | Discovered new exit (range 15) 38 | -11/Scrapyard | Entered Materials 190 | -10/Materials | Core integrity fell below 50% 245 | -10/Materials | Discovered new exit (range 15) 296 | -10/Materials | Discovered new exit (range 15) 422 | -10/Materials | Discovered new exit (range 10) 440 | -10/Materials | Core integrity fell below 20% 471 | -10/Materials | Entered another Materials area 471 | -9/Materials | Evolved 2 slots: Utility x1, Weapon x1 560 | -9/Materials | Identified exit to Mines 560 | -9/Materials | Identified exit to Storage 829 | -9/Materials | Core integrity fell below 50% 857 | -9/Materials | Lost 5 parts (1p1n1u2w) 962 | -9/Materials | Core integrity fell below 20% 976 | -9/Materials | Destroyed by G-34 Mercenary with Small Laser Last Messages --------------- K-01 Serf cleans the Terminal. W-16 Scout sends out distress signal. K-01 Serf collects debris. K-01 Serf cleans the Terminal. R-06 Scavenger collects Sml. Laser. Hvy. Assault Rifle destroyed. Hrd. Light Armor Plating destroyed. Assault Rifle destroyed. Aluminum Leg destroyed. L-31 Rogue destroyed. Acquired 47 matter. K-01 Serf collects debris. Acquired 43 matter. Connecting with Terminal... ALERT: Suspicious activity at Terminal M007. Dispatching Investigation squad. K-01 Serf collects debris. W-16 Scout sends out distress signal. K-01 Serf cleans the Fusion Modulator. Aluminum Leg destroyed. Map ----- +----------------------------------------------------+ | ?????????????????????????????????????????????????? | | ?????????????????????????????????????????????????? | | ?????????????????????????????????????????????????? | | ?????????????????????????????????????????????????? | | ??????????????>??????????????????????????????????? | | ?????????????????????????????????????????????????? | | ?????????????????????????????????????????????????? | | ?????????????????????????????????????????????????? | | ?????????????????????????????????????????????????? | | ??????????????????????#########??????????????????? | | ?????????????????????# #?????????????????? | | ?????????????????????# #?????????????????? | | ?????????????????????# """ """ #?????????????????? | | ?????????????????????# """ """ #?????????????????? | | ?????????????????????# """ """ #?????????????????? | | ?????????????????????# #?????????????????? | | ?????????????????????# [ #?????????????????? | | ?????????????????????# #?????????????????? | | ?????????????????????#####+##########????????????? | | ????????????????######### ## #????????????? | | ????????????????# # + #????????????? | | ????????????????# + ^## ########?????? | | ????????????????# [| #^ ## + | | ????????????????# | # ## ########?????? | | ????????????????# """ # ## #????????????? | | ????????????????# """ #@ ## #????????????? | | ????????????????# """ + ## #????????????? | | ????????????????# # ## #????????????? | | ????????????????######### ## #????????????? | | ???????????????????????# ##+#####????????????? | | ??????????# #???###### g ######?????????? | | ??????????# #??# # Tg / ""??????? | | ??????????# #??# # g ###### ""??????? | | ??????????# #??# # ] ######??????????????? | | #?????????# #??# ## k##???????????????????? | | #?????????# #??# ## #????????????????????? | | #?????????# #??? ## #????????????????????? | | #?????????# #????? ## ##########???????????? | | #?????????# #????### ## ## ##### ?? | | #?????????# #????# ?? | | ########### #????# > ?? | | # ## #????# ?? | | # ## ##???# ####### ##### ""???? | | # # ##### # =# "|"!" #???????????? | | + # = / #""|"!""#???????????? | | # + T ^# #########???????????? | | # # # #???????????????????? | | # # ####### # """ #???????????????????? | | # ## ########%# """ #???????????????????? | | # ## # # # """ #???????????????????? | +----------------------------------------------------+ Best States ------------- Heat Dissipation 28 Energy Generation 10 Energy Capacity 250 Matter Stores 300 Matter Capacity 300 Sight Range 16 Terrain Scan Density 10 Additional Mass Support 6 Armor Coverage 150 Evasion (%) 62 Targeting Accuracy 6 Item Schematics ----------------- None Robot Schematics ------------------ None Fabricated ------------ Nothing Alien Tech Used ----------------- None Achievements -------------- None Challenges ------------ None Game ------ Seed DisposableImpulseSpoofer Manual? 0 Play Time 00:19:59 Cumulative 4.1 hours Start 2024.04.04 @ 17:39:06 End 2024.04.04 @ 18:23:35 Sessions 1 Manual Loads 0 Difficulty Rogue Special Mode None Game No. 10 Rogue 10 Adventurer 0 Explorer 0 Win Type - Total 0 Types 0/0/0/0/0/0/0/0/0 Lore% 3 Gallery% 9 Achievement% 10 Wizard Run 0 Options --------- Layout 1 ASCII 0 Keyboard 0 Movement Mouse Keybinds 0 Fullscreen 1 Font 24/Smallcaps Map View 50x35 Zoom Use 0% Tactical HUD 0 Map Filters NONE Filters NONE Steam 1 RUN: 25ee1fa4-d739-43fa-8877-9f7527e9d45c